fUST/lending_fUST_20240701
["ID","MTS","AMOUNT","RATE_DAILY","PERIOD"]
[330786589,1719783050130,-500.0,0.00016667,2]
[330786590,1719783050140,-526.78,0.00016667,2]
[330786591,1719783050150,-500.0,0.00016667,2]
[330786592,1719783050159,-500.0,0.00016667,2]
[330786593,1719783050168,-500.0,0.00016667,2]
[330786594,1719783050178,-500.0,0.00016667,2]
[330786595,1719783050188,-500.0,0.00016667,2]
[330786596,1719783050197,-500.0,0.00016667,2]
[330786597,1719783050206,-500.0,0.00016667,2]
[330786598,1719783050216,-500.0,0.00016667,2]
[330786599,1719783050225,-500.0,0.00016667,2]
[330786600,1719783050236,-1175.41,0.00016667,2]
[330786601,1719783050246,-500.0,0.00016667,2]
[330786602,1719783050258,-226.4332071,0.00016667,2]
[330786603,1719783050267,-528.53,0.00016667,2]
[330786604,1719783050276,-8813.29,0.00016667,2]
[330786605,1719783050290,-500.0,0.00016667,2]
[330786606,1719783050299,-1534.98,0.00016667,2]
[330786607,1719783050309,-500.0,0.00016667,2]
[330786608,1719783050319,-500.0,0.00016667,2]
[330786609,1719783050329,-724.22,0.00016667,2]
[330786610,1719783050339,-500.0,0.00016667,2]
[330786611,1719783050348,-576.9,0.00016667,2]
[330786612,1719783050359,-500.0,0.00016667,2]
[330786613,1719783050371,-500.0,0.00016667,2]
[330786614,1719783050382,-500.0,0.00016667,2]
[330786615,1719783050391,-1768.01,0.00016667,2]
[330786616,1719783050400,-500.0,0.00016667,2]
[330786617,1719783050409,-500.0,0.00016667,2]
[330786618,1719783050418,-500.0,0.00016667,2]
[330786619,1719783050428,-560.12,0.00016667,2]
[330786620,1719783050437,-500.0,0.00016667,2]
[330786621,1719783050446,-1092.27,0.00016667,2]
[330786622,1719783050455,-1033.93,0.00016667,2]
[330786623,1719783050467,-500.0,0.00016667,2]
[330786624,1719783050477,-500.0,0.00016667,2]
[330786625,1719783050487,-500.0,0.00016667,2]
[330786626,1719783050495,-500.0,0.00016667,2]
[330786627,1719783050507,-500.0,0.00016667,2]
[330786628,1719783050516,-500.0,0.00016667,2]
[330786629,1719783050526,-1303.45,0.00016667,2]
[330786630,1719783050535,-221.44456564,0.00016667,2]
[330786631,1719783050544,-500.0,0.00016667,2]
[330786632,1719783050554,-500.0,0.00016667,2]
[330786633,1719783050563,-500.0,0.00016667,2]
[330786634,1719783050572,-835.17,0.00016667,2]
[330786635,1719783050582,-737.45,0.00016667,2]
[330786636,1719783050591,-203.34,0.00016667,2]
[330786637,1719783050600,-151.0,0.00016667,2]
[330786638,1719783050610,-500.0,0.00016667,2]
[330786639,1719783050619,-500.0,0.00016667,2]
[330786640,1719783050628,-500.0,0.00016667,2]
[330786641,1719783050637,-681.47,0.00016667,2]
[330786642,1719783050646,-500.0,0.00016667,2]
[330786643,1719783050655,-500.0,0.00016667,2]
[330786644,1719783050665,-151.0,0.00016667,2]
[330786645,1719783050674,-688.77,0.00016667,2]
[330786646,1719783050683,-876.8,0.00016667,2]
[330786647,1719783050693,-500.0,0.00016667,2]
[330786648,1719783050703,-500.0,0.00016667,2]
[330786649,1719783050719,-500.0,0.00016667,2]
[330786650,1719783050730,-680.42,0.00016667,2]
[330786651,1719783050740,-500.0,0.00016667,2]
[330786652,1719783050752,-1105.12,0.00016667,2]
[330786653,1719783050761,-500.0,0.00016667,2]
[330786654,1719783050771,-500.0,0.00016667,2]
[330786655,1719783050781,-500.0,0.00016667,2]
[330786656,1719783050792,-842.09,0.00016667,2]
[330786657,1719783050802,-500.0,0.00016667,2]
[330786658,1719783050811,-500.0,0.00016667,2]
[330786659,1719783050820,-500.0,0.00016667,2]
[330786660,1719783050830,-1191.28,0.00016667,2]
[330786661,1719783050839,-500.0,0.00016667,2]
[330786662,1719783050849,-500.0,0.00016667,2]
[330786663,1719783050858,-500.0,0.00016667,2]
[330786664,1719783050868,-500.0,0.00016667,2]
[330786665,1719783050877,-500.0,0.00016667,2]
[330786666,1719783050887,-500.0,0.00016667,2]
[330786667,1719783050897,-500.0,0.00016667,2]
[330786668,1719783050907,-500.0,0.00016667,2]
[330786669,1719783050917,-500.0,0.00016667,2]
[330786670,1719783050927,-500.0,0.00016667,2]
[330786671,1719783050936,-500.0,0.00016667,2]
[330786672,1719783050946,-11644.51,0.00016668,2]
[330786673,1719783050955,-500.0,0.00016668,2]
[330786674,1719783050964,-1062.79669924,0.00016669,2]
[330786675,1719783050973,-500.0,0.00016669,2]
[330786676,1719783050982,-500.0,0.00016669,2]
[330786677,1719783050991,-500.0,0.00016669,2]
[330786678,1719783051000,-428.12880713,0.00016669,2]
[330786679,1719783051009,-717.25,0.00016669,2]
[330786680,1719783051018,-500.0,0.00016669,2]
[330786681,1719783051027,-512.32,0.00016669,2]
[330786682,1719783051037,-500.0,0.00016669,2]
[330786683,1719783051047,-500.0,0.00016669,2]
[330786684,1719783051056,-825.11,0.00016669,2]
[330786685,1719783051065,-500.0,0.00016669,2]
[330786686,1719783051074,-151.0,0.00016669,2]
[330786687,1719783051084,-500.0,0.00016669,2]
[330786688,1719783051094,-1596.17,0.00016669,2]
[330786689,1719783051103,-7035.4,0.0001667,2]
[330786690,1719783051112,-151.0,0.0001667,2]
[330786691,1719783051122,-151.0,0.0001667,2]
[330786692,1719783051131,-151.0,0.0001667,2]
[330786693,1719783051140,-1385.89,0.0001667,2]
[330786694,1719783051150,-223.191982,0.0001667,2]
[330786695,1719783051159,-970.29,0.0001667,2]
[330786696,1719783051168,-223.191982,0.0001667,2]
[330786697,1719783051177,-11463.9,0.0001667,2]
[330786698,1719783051186,-988.87,0.0001667,2]
[330786699,1719783051195,-798.61178962,0.00017013,2]
[330786700,1719783051204,-151.0,0.00017073,2]
[330786701,1719783051214,-397.3437345,0.00017085,2]
[330786702,1719783051223,-620.11016574,0.00017094,2]
[330786703,1719783051234,-500.0,0.00017213,2]
[330786704,1719783051243,-500.0,0.00017213,2]
[330786705,1719783051252,-3635.47,0.00017213,2]
[330786706,1719783051262,-3495.24,0.00017213,2]
[330786707,1719783051271,-1845.55,0.00017213,2]
[330786708,1719783051282,-1530.05,0.00017213,2]
[330786709,1719783051292,-500.0,0.00017213,2]
[330786710,1719783051302,-500.0,0.00017213,2]
[330786711,1719783051313,-500.0,0.00017213,2]
[330786712,1719783051322,-1644.28,0.00017213,2]
[330786713,1719783051410,-1571.28,0.00017213,2]
[330786714,1719783051421,-500.0,0.00017213,2]
[330786715,1719783051431,-14403.6,0.00017213,2]
[330786716,1719783051441,-1208.83,0.00017213,2]
[330786717,1719783051449,-5290.74,0.00017213,2]
[330786718,1719783051458,-13425.39,0.00017213,2]
[330786719,1719783051468,-605.15,0.00017213,2]
[330786720,1719783051477,-500.0,0.00017213,2]
[330786721,1719783051486,-731.64,0.00017213,2]
[330786722,1719783051495,-638.35,0.00017213,2]
[330786723,1719783051505,-1820.86,0.00017213,2]
[330786724,1719783051514,-500.0,0.00017213,2]
[330786725,1719783051524,-5933.57,0.00017213,2]
[330786726,1719783051532,-500.0,0.00017213,2]
[330786727,1719783051541,-1288.91,0.00017213,2]
[330786728,1719783051550,-844.32,0.00017213,2]
[330786729,1719783051559,-500.0,0.00017214,2]
[330786730,1719783051568,-500.0,0.00017214,2]
[330786731,1719783051577,-1299.91,0.00017214,2]
[330786732,1719783051585,-500.0,0.00017214,2]
[330786733,1719783051594,-1640.19,0.00017214,2]
[330786734,1719783051603,-500.0,0.00017214,2]
[330786735,1719783051612,-500.0,0.00017214,2]
[330786736,1719783051621,-511.52,0.00017214,2]
[330786737,1719783051631,-1552.38,0.00017214,2]
[330786738,1719783051640,-500.0,0.00017214,2]
[330786739,1719783051649,-1917.77,0.00017214,2]
[330786740,1719783051658,-704.9,0.00017214,2]
[330786741,1719783051668,-1263.49,0.00017214,2]
[330786742,1719783051678,-500.0,0.00017214,2]
[330786743,1719783051688,-500.0,0.00017214,2]
[330786744,1719783051697,-500.0,0.00017214,2]
[330786745,1719783051710,-500.0,0.00017214,2]
[330786746,1719783051719,-500.0,0.00017214,2]
[330786747,1719783051728,-569.13,0.00017214,2]
[330786748,1719783051739,-292.66699528,0.00017214,2]
[330786749,1719783051749,-633.32645335,0.00017214,2]
[330786750,1719783051758,-743.11,0.00017214,2]
[330786751,1719783051767,-613.62,0.00017214,2]
[330786752,1719783051776,-500.0,0.00017214,2]
[330786753,1719783051786,-625.02,0.00017214,2]
[330786754,1719783051795,-151.0,0.00017214,2]
[330786755,1719783051805,-528.68,0.00017214,2]
[330786756,1719783051815,-500.0,0.00017214,2]
[330786757,1719783051825,-151.0,0.00017214,2]
[330786758,1719783051834,-675.23,0.00017214,2]
[330786759,1719783051843,-500.0,0.00017214,2]
[330786760,1719783051853,-1341.68,0.00017214,2]
[330786761,1719783051862,-3046.41,0.00017214,2]
[330786762,1719783051871,-594.69,0.00017214,2]
[330786763,1719783051880,-500.0,0.00017214,2]
[330786764,1719783051889,-715.47,0.00017214,2]
[330786765,1719783051899,-662.9,0.00017214,2]
[330786766,1719783051910,-1234.18,0.00017214,2]
[330786767,1719783051920,-500.0,0.00017214,2]
[330786768,1719783051930,-859.49,0.00017214,2]
[330786769,1719783051940,-500.0,0.00017214,2]
[330786770,1719783051949,-1472.78,0.00017214,2]
[330786771,1719783051959,-792.64,0.00017214,2]
[330786772,1719783051969,-500.0,0.00017214,2]
[330786773,1719783051980,-500.0,0.00017214,2]
[330786774,1719783051990,-183.84440894,0.00017214,2]
[330786775,1719783051999,-1541.1,0.00017214,2]
[330786776,1719783052008,-500.0,0.00017214,2]
[330786777,1719783052018,-500.0,0.00017214,2]
[330786778,1719783052028,-757.71,0.00017214,2]
[330786779,1719783052039,-516.24971827,0.00017215,2]
[330786780,1719783052048,-500.0,0.00017215,2]
[330786781,1719783052059,-418.60295459,0.00017215,2]
[330786782,1719783052068,-500.0,0.00017215,2]
[330786783,1719783052078,-2023.65,0.00017215,2]
[330786784,1719783052087,-500.0,0.00017215,2]
[330786785,1719783052097,-500.0,0.00017215,2]
[330786786,1719783052107,-656.15,0.00017215,2]
[330786787,1719783052116,-611.98,0.00017215,2]
[330786788,1719783052125,-500.0,0.00017215,2]
[330786789,1719783052135,-950.68,0.00017215,2]
[330786790,1719783052143,-704.18,0.00017215,2]
[330786791,1719783052152,-500.0,0.00017215,2]
[330786792,1719783052162,-500.0,0.00017215,2]
[330786793,1719783052171,-526.78,0.00017215,2]
[330786794,1719783052180,-500.0,0.00017215,2]
[330786795,1719783052189,-500.0,0.00017215,2]
[330786796,1719783052198,-500.0,0.00017215,2]
[330786797,1719783052207,-500.0,0.00017215,2]
[330786798,1719783052216,-183.0439174,0.00017215,2]
[330786799,1719783052225,-500.0,0.00017215,2]
[330786800,1719783052235,-500.0,0.00017215,2]
[330786801,1719783052244,-500.0,0.00017215,2]
[330786802,1719783052253,-500.0,0.00017215,2]
[330786803,1719783052263,-1175.41,0.00017215,2]
[330786804,1719783052272,-500.0,0.00017215,2]
[330786805,1719783052281,-528.53,0.00017215,2]
[330786806,1719783052291,-8813.29,0.00017215,2]
[330786807,1719783052300,-500.0,0.00017215,2]
[330786808,1719783052309,-1534.98,0.00017215,2]
[330786809,1719783052318,-500.0,0.00017215,2]
[330786810,1719783052327,-500.0,0.00017215,2]
[330786811,1719783052337,-724.22,0.00017215,2]
[330786812,1719783052346,-500.0,0.00017215,2]
[330786813,1719783052355,-576.9,0.00017215,2]
[330786814,1719783052364,-500.0,0.00017215,2]
[330786815,1719783052373,-500.0,0.00017215,2]
[330786816,1719783052384,-500.0,0.00017215,2]
[330786817,1719783052394,-1768.01,0.00017215,2]
[330786818,1719783052404,-500.0,0.00017215,2]
[330786819,1719783052414,-500.0,0.00017215,2]
[330786820,1719783052423,-500.0,0.00017215,2]
[330786821,1719783052433,-560.12,0.00017215,2]
[330786822,1719783052442,-500.0,0.00017215,2]
[330786823,1719783052452,-1092.27,0.00017215,2]
[330786824,1719783052463,-1033.93,0.00017215,2]
[330786825,1719783052472,-500.0,0.00017215,2]
[330786826,1719783052483,-500.0,0.00017215,2]
[330786827,1719783052492,-500.0,0.00017215,2]
[330786828,1719783052503,-500.0,0.00017215,2]
[330786829,1719783052512,-500.0,0.00017215,2]
[330786830,1719783052521,-500.0,0.00017215,2]
[330786831,1719783052530,-1303.45,0.00017215,2]
[330786832,1719783052540,-500.0,0.00017215,2]
[330786833,1719783052551,-500.0,0.00017215,2]
[330786834,1719783052561,-500.0,0.00017215,2]
[330786835,1719783052570,-835.17,0.00017215,2]
[330786836,1719783052579,-737.45,0.00017215,2]
[330786837,1719783052589,-500.0,0.00017215,2]
[330786838,1719783052598,-500.0,0.00017215,2]
[330786839,1719783052609,-500.0,0.00017215,2]
[330786840,1719783052619,-681.47,0.00017215,2]
[330786841,1719783052629,-412.01528165,0.00017215,2]
[330786842,1719783052640,-500.0,0.00017215,2]
[330786843,1719783052650,-688.77,0.00017215,2]
[330786844,1719783052659,-876.8,0.00017215,2]
[330786845,1719783052668,-500.0,0.00017215,2]
[330786846,1719783052754,-500.0,0.00017215,2]
[330786847,1719783052765,-500.0,0.00017215,2]
[330786848,1719783052776,-680.42,0.00017215,2]
[330786849,1719783052786,-500.0,0.00017215,2]
[330786850,1719783052796,-1105.12,0.00017215,2]
[330786851,1719783052806,-500.0,0.00017215,2]
[330786852,1719783052816,-151.0,0.00017215,2]
[330786853,1719783052827,-151.0,0.00017215,2]
[330786854,1719783052837,-500.0,0.00017215,2]
[330786855,1719783052846,-151.0,0.00017215,2]
[330786856,1719783052858,-500.0,0.00017215,2]
[330786857,1719783052867,-842.09,0.00017215,2]
[330786858,1719783052877,-500.0,0.00017215,2]
[330786859,1719783052887,-500.0,0.00017215,2]
[330786860,1719783052896,-500.0,0.00017215,2]
[330786861,1719783052906,-1191.28,0.00017215,2]
[330786862,1719783052916,-500.0,0.00017215,2]
[330786863,1719783052927,-500.0,0.00017215,2]
[330786864,1719783052936,-223.191982,0.00017215,2]
[330786865,1719783052946,-500.0,0.00017215,2]
[330786866,1719783052955,-223.191982,0.00017215,2]
[330786867,1719783052965,-500.0,0.00017215,2]
[330786868,1719783052974,-500.0,0.00017215,2]
[330786869,1719783052983,-500.0,0.00017215,2]
[330786870,1719783052993,-271.717802,0.00017215,2]
[330786871,1719783053004,-500.0,0.00017215,2]
[330786872,1719783053014,-500.0,0.00017215,2]
[330786873,1719783053024,-500.0,0.00017215,2]
[330786874,1719783053033,-500.0,0.00017215,2]
[330786875,1719783053043,-500.0,0.00017215,2]
[330786876,1719783053053,-11644.51,0.00017216,2]
[330786877,1719783053063,-500.0,0.00017216,2]
[330786878,1719783053073,-500.0,0.00017217,2]
[330786879,1719783053083,-500.0,0.00017217,2]
[330786880,1719783053092,-500.0,0.00017217,2]
[330786881,1719783053102,-717.25,0.00017217,2]
[330786882,1719783053111,-500.0,0.00017217,2]
[330786883,1719783053121,-512.32,0.00017217,2]
[330786884,1719783053130,-500.0,0.00017217,2]
[330786885,1719783053140,-500.0,0.00017217,2]
[330786886,1719783053149,-825.11,0.00017217,2]
[330786887,1719783053158,-500.0,0.00017217,2]
[330786888,1719783053168,-500.0,0.00017217,2]
[330786889,1719783053178,-1596.17,0.00017217,2]
[330786890,1719783053187,-151.0,0.00017218,2]
[330786891,1719783053196,-151.0,0.00017218,2]
[330786892,1719783053206,-7035.4,0.00017218,2]
[330786893,1719783053215,-1385.89,0.00017218,2]
[330786894,1719783053224,-970.29,0.00017218,2]
[330786895,1719783053234,-11463.9,0.00017218,2]
[330786896,1719783053243,-988.87,0.00017218,2]
[330786897,1719783053254,-151.0,0.00017231,2]
[330786898,1719783053264,-293.0841251,0.00017315,2]
[330786899,1719783053273,-293.0841251,0.00017315,2]
[330786900,1719783053283,-293.0841251,0.00017315,2]
[330786901,1719783053292,-293.1302778,0.00017315,2]
[330786902,1719783053301,-586.0297921,0.00017315,2]
[330786903,1719783053312,-296.042434,0.00017315,2]
[330786904,1719783053321,-293.1302778,0.00017315,2]
[330786905,1719783053330,-293.1302778,0.00017315,2]
[330786906,1719783053339,-293.1302778,0.00017315,2]
[330786907,1719783053348,-293.1302778,0.00017315,2]
[330786908,1719783053357,-293.1782989,0.00017315,2]
[330786909,1719783053367,-585.5551863,0.00017315,2]
[330786910,1719783053376,-293.1302778,0.00017315,2]
[330786911,1719783053385,-293.1302778,0.00017315,2]
[330786912,1719783053395,-294.0766794,0.00017315,2]
[330786913,1719783053404,-293.1302778,0.00017315,2]
[330786914,1719783053413,-151.0,0.0001739,2]
[330786915,1719783053423,-150.0,0.00017533,2]
[330786916,1719783053432,-173.91196077,0.00017533,2]
[330786917,1719783053440,-155.0,0.0001754,2]
[330786918,1719783053450,-151.0,0.00017548,2]
[330786919,1719783053459,-670.2395581,0.000176,2]
[330786924,1719783175609,215.61294534,0.00014999,2]
[330786926,1719783193997,150.0,0.000166,30]
[330786928,1719783203815,154.83742071,0.00014999,2]
[330786929,1719783205712,298.00780091,0.00014921,2]
[330786939,1719783296747,154.83742071,0.00014999,2]
[330786942,1719783335954,500.0,0.00014999,2]
[330786943,1719783340694,200.69263147,0.00014999,2]
[330786946,1719783363471,258.80025544,0.00014999,2]
[330786952,1719783374720,168.89279474,0.00014999,2]
[330786954,1719783389610,491.78712848,0.00014999,2]
[330786963,1719783434262,154.83742071,0.00014999,2]
[330786964,1719783440898,260.75682577,0.0001492,2]
[330786997,1719783618463,5156.69232868,0.00014998,2]
[330787009,1719783721512,228.16222254,0.00014919,2]
[330787010,1719783727760,2825.49865465,0.00015,2]
[330787024,1719783834367,1313.33059803,0.00014999,2]
[330787026,1719783850854,1914.02350809,0.00014999,2]
[330787028,1719783870296,619.10238857,0.00015,2]
[330787032,1719783911630,490.88303882,0.00014999,2]
[330787033,1719783915154,2345.81560556,0.00014999,2]
[330787038,1719783968178,528.63416526,0.00014999,2]
[330787044,1719784007033,199.64194474,0.00014918,2]
[330787046,1719784044272,2525.2295066,0.0001402,2]
[330787047,1719784044850,210.22902618,0.00014999,2]
[330787051,1719784049799,151.11175224,0.00014917,2]
[330787055,1719784114086,-300.0,0.00015017,2]
[330787056,1719784114121,-300.0,0.00015017,2]
[330787057,1719784114152,-124.17886112,0.00015018,2]
[330787058,1719784114188,-375.82113888,0.00015018,2]
[330787059,1719784114217,-85.45346919,0.00015018,2]
[330787062,1719784139085,-500.0,0.00015018,2]
[330787063,1719784139117,-247.88793051,0.00015018,2]
[330787064,1719784140240,283.06585599,0.00014999,2]
[330787065,1719784142799,154.83742071,0.00014999,2]
[330787068,1719784153795,617.26390047,0.00014999,2]
[330787070,1719784159211,154.83742071,0.00014999,2]
[330787071,1719784164103,-300.0,0.00015017,2]
[330787072,1719784164135,-300.0,0.00015017,2]
[330787073,1719784164167,-162.84568912,0.00015018,2]
[330787074,1719784165959,2041.8718293,0.00014999,2]
[330787076,1719784178508,963.5301908,0.00014999,2]
[330787077,1719784189134,-500.0,0.00015018,2]
[330787078,1719784189176,-278.1026029,0.00015018,2]
[330787079,1719784189220,-241.39424401,0.00015018,2]
[330787080,1719784204604,179.27418986,0.00014999,2]
[330787082,1719784224129,668.25105163,0.00014999,2]
[330787130,1719784234529,-300.0,0.00015017,2]
[330787132,1719784234539,-500.0,0.00015018,2]
[330787134,1719784234549,-500.0,0.00015018,2]
[330787135,1719784234559,-498.1300528,0.00015018,2]
[330787136,1719784234568,-500.0,0.00015018,2]
[330787138,1719784234578,-500.0,0.00015018,2]
[330787140,1719784234587,-500.0,0.00015018,2]
[330787142,1719784234597,-500.0,0.00015018,2]
[330787145,1719784234606,-500.0,0.00015018,2]
[330787147,1719784234615,-250.30493242,0.00015018,2]
[330787148,1719784234625,-500.0,0.00015018,2]
[330787151,1719784234635,-500.0,0.00015018,2]
[330787153,1719784234644,-643.27323495,0.00015018,2]
[330787155,1719784234656,-484.51676505,0.00015018,2]
[330787156,1719784234666,-51.31930883,0.00015018,2]
[330787158,1719784239001,-496.35069117,0.00015018,2]
[330787159,1719784239016,-500.0,0.00015018,2]
[330787160,1719784239026,-500.0,0.00015018,2]
[330787161,1719784239036,-500.0,0.00015018,2]
[330787162,1719784239047,-500.0,0.00015018,2]
[330787163,1719784239057,-500.0,0.00015018,2]
[330787164,1719784239067,-500.0,0.00015018,2]
[330787165,1719784239078,-500.0,0.00015018,2]
[330787166,1719784239089,-500.0,0.00015018,2]
[330787167,1719784239099,-500.0,0.00015018,2]
[330787168,1719784239109,-500.0,0.00015018,2]
[330787169,1719784239119,-500.0,0.00015018,2]
[330787170,1719784239130,-500.0,0.00015018,2]
[330787171,1719784239140,-500.0,0.00015018,2]
[330787172,1719784239150,-500.0,0.00015018,2]
[330787173,1719784239160,-500.0,0.00015018,2]
[330787174,1719784239169,-500.0,0.00015018,2]
[330787175,1719784239179,-500.0,0.00015018,2]
[330787176,1719784239189,-3113.56,0.00015018,2]
[330787177,1719784239199,-500.0,0.00015018,2]
[330787178,1719784239210,-265.18552668,0.00015018,2]
[330787179,1719784239248,3642.48546166,0.00014999,2]
[330787180,1719784239261,-2903.85447332,0.00015018,2]
[330787181,1719784239270,-500.0,0.00015018,2]
[330787182,1719784239280,-500.0,0.00015018,2]
[330787183,1719784239290,-500.0,0.00015018,2]
[330787184,1719784239299,-500.0,0.00015018,2]
[330787185,1719784239309,-1565.74,0.00015018,2]
[330787186,1719784239319,-500.0,0.00015018,2]
[330787187,1719784239328,-500.0,0.00015018,2]
[330787188,1719784239338,-306.06859678,0.00015018,2]
[330787189,1719784239348,-500.0,0.00015018,2]
[330787190,1719784239358,-500.0,0.00015018,2]
[330787191,1719784239369,-500.0,0.00015018,2]
[330787192,1719784239380,-500.0,0.00015018,2]
[330787193,1719784239389,-192.32260261,0.00015018,2]
[330787194,1719784239402,-307.67739739,0.00015018,2]
[330787195,1719784239412,-549.11876076,0.00015018,2]
[330787196,1719784239422,-500.0,0.00015018,2]
[330787197,1719784239431,-1426.96,0.00015018,2]
[330787198,1719784239440,-503.11874479,0.00015018,2]
[330787199,1719784239450,-323.61189187,0.00015018,2]
[330787200,1719784239462,-664.55810813,0.00015018,2]
[330787201,1719784239473,-500.0,0.00015018,2]
[330787202,1719784239482,-1553.32,0.00015018,2]
[330787203,1719784239492,-500.0,0.00015018,2]
[330787204,1719784239502,-500.0,0.00015018,2]
[330787205,1719784239512,-500.0,0.00015018,2]
[330787206,1719784239521,-500.0,0.00015018,2]
[330787207,1719784239531,-5789.72,0.00015018,2]
[330787208,1719784239541,-564.62,0.00015018,2]
[330787209,1719784239551,-504.67708281,0.00015018,2]
[330787210,1719784239560,-500.0,0.00015018,2]
[330787211,1719784239570,-500.0,0.00015018,2]
[330787212,1719784239580,-272.08025882,0.00015018,2]
[330787213,1719784239590,-500.0,0.00015018,2]
[330787214,1719784239600,-500.0,0.00015018,2]
[330787215,1719784239610,-500.0,0.00015018,2]
[330787216,1719784239619,-1186.2,0.00015018,2]
[330787217,1719784239629,-501.82276217,0.00015018,2]
[330787218,1719784239639,-500.0,0.00015018,2]
[330787219,1719784239649,-500.0,0.00015018,2]
[330787220,1719784239658,-500.0,0.00015018,2]
[330787221,1719784239668,-500.0,0.00015018,2]
[330787222,1719784239678,-500.0,0.00015018,2]
[330787223,1719784239687,-500.0,0.00015018,2]
[330787224,1719784239698,-12145.88,0.00015018,2]
[330787225,1719784239707,-583.64,0.00015018,2]
[330787226,1719784239716,-500.0,0.00015018,2]
[330787227,1719784239726,-500.0,0.00015018,2]
[330787228,1719784239736,-12022.36,0.00015018,2]
[330787229,1719784239746,-1798.12,0.00015018,2]
[330787230,1719784239755,-500.0,0.00015018,2]
[330787231,1719784239765,-500.0,0.00015018,2]
[330787232,1719784239775,-649.69,0.00015018,2]
[330787233,1719784239785,-559.43,0.00015018,2]
[330787234,1719784239795,-500.0,0.00015018,2]
[330787235,1719784239804,-508.38098958,0.00015018,2]
[330787236,1719784239814,-3390.69,0.00015018,2]
[330787237,1719784239824,-738.78,0.00015018,2]
[330787238,1719784239834,-509.87324631,0.00015018,2]
[330787239,1719784239843,-500.0,0.00015018,2]
[330787240,1719784239853,-500.0,0.00015018,2]
[330787241,1719784239862,-500.0,0.00015018,2]
[330787242,1719784239872,-2004.12,0.00015018,2]
[330787243,1719784239882,-500.0,0.00015018,2]
[330787244,1719784239892,-500.0,0.00015018,2]
[330787245,1719784239902,-8842.73,0.00015018,2]
[330787246,1719784239913,-686.1,0.00015018,2]
[330787247,1719784239923,-5522.15,0.00015018,2]
[330787248,1719784239933,-500.0,0.00015018,2]
[330787249,1719784239942,-1080.8,0.00015018,2]
[330787250,1719784239952,-602.7697334,0.00015018,2]
[330787251,1719784239962,-500.0,0.00015019,2]
[330787252,1719784239971,-500.0,0.00015019,2]
[330787253,1719784239980,-631.56289185,0.00015019,2]
[330787254,1719784239991,-1207.01,0.00015019,2]
[330787255,1719784240001,-500.0,0.00015019,2]
[330787256,1719784240016,-500.0,0.00015019,2]
[330787257,1719784240026,-500.0,0.00015019,2]
[330787258,1719784240035,-500.0,0.00015019,2]
[330787259,1719784240047,-500.0,0.00015019,2]
[330787260,1719784240057,-500.0,0.00015019,2]
[330787261,1719784240066,-1509.24,0.00015019,2]
[330787262,1719784240076,-500.0,0.00015019,2]
[330787263,1719784240089,-500.0,0.00015019,2]
[330787264,1719784240098,-618.3,0.00015019,2]
[330787265,1719784240107,-500.0,0.00015019,2]